fUST/lending_fUST_20260111
["ID","MTS","AMOUNT","RATE_DAILY","PERIOD"]
[401287852,1768108238811,-662.2290012,0.00010959,2]
[401287853,1768108238821,-200.46,0.000112,2]
[401287854,1768108238831,-221.34729613,0.00011213,2]
[401287855,1768108238842,-245.838,0.00011338,2]
[401287856,1768108238853,-263.77,0.00011386,2]
[401287857,1768108238863,-200.46,0.000117,2]
[401287858,1768108238873,-500.0,0.00012012,2]
[401287859,1768108238885,-174.61919141,0.00012045,2]
[401287860,1768108238896,-289.86,0.00012084,2]
[401287861,1768108238906,-453.36294584,0.00012149,2]
[401287862,1768108238921,-46.63705416,0.00012149,2]
[401287863,1768108238933,-275.54166999,0.00012173,2]
[401287864,1768108238943,-327.592,0.00012184,2]
[401287865,1768108238953,-200.46,0.000122,2]
[401287866,1768108238963,-500.0,0.00012286,2]
[401287867,1768108238973,-300.0,0.00012286,2]
[401287868,1768108238984,-300.0,0.00012286,2]
[401287869,1768108238995,-300.0,0.00012286,2]
[401287870,1768108239006,-300.0,0.00012286,2]
[401287871,1768108239016,-300.0,0.00012286,2]
[401287872,1768108239027,-300.0,0.00012286,2]
[401287873,1768108239037,-300.0,0.00012286,2]
[401287874,1768108239047,-300.0,0.00012286,2]
[401287875,1768108239056,-300.0,0.00012286,2]
[401287876,1768108239066,-300.0,0.00012286,2]
[401287877,1768108239076,-300.0,0.00012286,2]
[401287878,1768108239087,-300.0,0.00012286,2]
[401287879,1768108239098,-300.0,0.00012286,2]
[401287880,1768108239108,-300.0,0.00012286,2]
[401287881,1768108239119,-300.0,0.00012286,2]
[401287882,1768108239129,-143.52208522,0.00012286,2]
[401287920,1768108240687,-356.47791478,0.00012286,2]
[401287922,1768108240698,-434.12499505,0.00012423,2]
[401288406,1768108245861,-500.0,0.00012012,2]
[401288407,1768108245870,-500.0,0.00012149,2]
[401288408,1768108245878,-500.0,0.00012286,2]
[401288409,1768108245888,-500.0,0.00012423,2]
[401288410,1768108245897,-500.0,0.0001256,2]
[401288411,1768108245905,-500.0,0.0001256,2]
[401288412,1768108245914,-1260.0,0.00012597,2]
[401288453,1768108246296,-334.9603638,0.00012597,2]
[401288455,1768108246307,-183.1083908,0.00012597,2]
[401288457,1768108246316,-1076.19754219,0.00012645,2]
[401288467,1768108246404,-12153.39335329,0.00012645,2]
[401288469,1768108246416,-36770.40910452,0.00012645,2]
[401288471,1768108246426,-500.0,0.00012645,2]
[401288473,1768108246436,-404.5873131,0.00012645,2]
[401288474,1768108246446,-294.75354753,0.00012645,2]
[401288476,1768108246455,-244.53730856,0.00012645,2]
[401288478,1768108246464,-500.0,0.00012645,2]
[401288480,1768108246473,-646.28825724,0.00012645,2]
[401288482,1768108246482,-387.50559685,0.00012645,2]
[401288485,1768108246491,-500.0,0.00012645,2]
[401288487,1768108246500,-500.0,0.00012645,2]
[401288489,1768108246509,-500.0,0.00012645,2]
[401288491,1768108246518,-349.44633762,0.00012653,2]
[401288493,1768108246528,-2139.11410339,0.00012653,2]
[401288495,1768108246537,-2139.11410339,0.00012653,2]
[401288497,1768108246547,-2139.11410339,0.00012653,2]
[401288498,1768108246555,-2139.11410339,0.00012653,2]
[401288500,1768108246564,-2139.11410339,0.00012653,2]
[401288502,1768108246573,-2139.11410339,0.00012653,2]
[401288504,1768108246583,-2139.11410339,0.00012653,2]
[401288506,1768108246593,-2139.11410339,0.00012653,2]
[401288508,1768108246601,-2139.11410339,0.00012653,2]
[401288510,1768108246610,-2139.11410339,0.00012653,2]
[401288512,1768108246620,-2139.11410339,0.00012653,2]
[401288514,1768108246629,-2139.11410339,0.00012653,2]
[401288516,1768108246638,-2139.11410339,0.00012653,2]
[401288518,1768108246647,-2139.11410339,0.00012653,2]
[401288520,1768108246658,-2139.11410339,0.00012653,2]
[401288522,1768108246668,-2139.11410339,0.00012653,2]
[401288524,1768108246677,-2139.11410339,0.00012653,2]
[401288526,1768108246687,-2139.11410339,0.00012653,2]
[401288528,1768108246696,-2139.11410339,0.00012653,2]
[401288530,1768108246705,-2139.11410339,0.00012653,2]
[401288532,1768108246714,-50517.48378847,0.00012654,2]
[401292048,1768108870586,95.61012073,0.00024135,110]
[401292049,1768108870608,58.44520826,0.00024135,110]
[401292050,1768108874367,135.19143127,0.00023868,94]
[401292051,1768108874388,37.88133965,0.00023868,94]
[401292052,1768108875240,126.55479174,0.00024135,110]
[401292053,1768108875263,46.51797918,0.00024135,110]
[401292054,1768108878086,147.48729718,0.00023868,94]
[401292055,1768108878109,140.38120439,0.00023868,94]
[401292056,1768108878992,44.98743244,0.00024002,102]
[401292057,1768108879014,185.36863683,0.00024002,102]
[401292058,1768108879037,57.5124323,0.00024002,102]
[401292059,1768108922470,-243.0,9.999e-05,2]
[401292060,1768108922494,-300.0,9.999e-05,2]
[401292061,1768108922516,-405.76457809,0.0001,2]
[401292062,1768108925609,-334.80614915,0.0001,2]
[401292063,1768109011986,-222.17185254,9.521e-05,2]
[401292064,1768109102047,-77.82814746,9.521e-05,2]
[401292065,1768109102071,-89.77972305,9.76e-05,2]
[401292066,1768109132121,-95.76866581,9.76e-05,2]
[401292067,1768109132148,-59.82161114,9.974e-05,2]
[401292070,1768109252095,4238.5106177,8.648e-05,2]
[401292080,1768109432457,-300.0,9.288e-05,2]
[401292081,1768109432467,-567.0,9.288e-05,2]
[401292082,1768109432477,-550.0,9.288e-05,2]
[401292083,1768109432489,-181.83742108,9.289e-05,2]
[401292084,1768109432499,-53.16304611,9.289e-05,2]
[401292085,1768109432514,-963.72371194,9.289e-05,2]
[401292113,1768109438518,-5088.52379001,9.289e-05,2]
[401292119,1768109438576,-707.06961348,9.289e-05,2]
[401292121,1768109438589,-664.13842397,9.289e-05,2]
[401292226,1768109446493,-1928.52631954,9.289e-05,2]
[401292227,1768109446553,-950.13,9.289e-05,2]
[401292248,1768110351350,874.465172,8.516e-05,2]
[401292305,1768110599484,153.41633031,0.0003013,120]
[401292325,1768110631637,-550.0,9.289e-05,2]
[401292326,1768110631646,-183.35868286,9.289e-05,2]
[401292327,1768110631656,-3069.78283144,9.289e-05,2]
[401292357,1768110637647,-1072.42239394,9.289e-05,2]
[401292527,1768110645703,-819.78023177,9.289e-05,2]
[401292528,1768110645715,-238.47647303,9.372e-05,2]
[401292529,1768110645724,-300.0,9.372e-05,2]
[401292530,1768110645733,-20282.27220745,9.373e-05,2]
[401292531,1768110645759,-1064.02929448,9.373e-05,2]
[401292532,1768110648522,225.0,0.00030136,120]
[401292569,1768110874188,155.0,6e-05,2]
[401292621,1768111036832,3699.9698568,8.373e-05,2]
[401292623,1768111305922,196.67,9.186e-05,2]
[401292650,1768111831833,-300.0,9.271e-05,2]
[401292652,1768111831842,-300.0,9.271e-05,2]
[401292653,1768111831852,-1200.0,9.271e-05,2]
[401292654,1768111831862,-550.0,9.271e-05,2]
[401292655,1768111831872,-185.11844774,9.271e-05,2]
[401292656,1768111831880,-2729.4010159,9.272e-05,2]
[401292657,1768111831892,-513.15983465,9.272e-05,2]
[401292683,1768111837979,-8858.38237819,9.272e-05,2]
[401292685,1768111837991,-10521.17056281,9.272e-05,2]
[401292687,1768111838006,-3522.16002755,9.272e-05,2]
[401292690,1768111838021,-1618.48555285,9.272e-05,2]
[401292693,1768111838036,-418.49770858,9.272e-05,2]
[401292695,1768111838048,-21818.74291947,9.272e-05,2]
[401292697,1768111838057,-1794.304779,9.272e-05,2]
[401292699,1768111838066,-244.61243633,9.272e-05,2]
[401292701,1768111838076,-1794.304779,9.272e-05,2]
[401292703,1768111838086,-1794.304779,9.272e-05,2]
[401292705,1768111838095,-1794.304779,9.272e-05,2]
[401292706,1768111838104,-1523.89033519,9.272e-05,2]
[401292709,1768111838115,-270.41444381,9.272e-05,2]
[401292711,1768111838124,-1794.304779,9.272e-05,2]
[401292712,1768111838134,-1794.304779,9.272e-05,2]
[401292714,1768111838143,-1794.304779,9.272e-05,2]
[401292716,1768111838153,-1794.304779,9.272e-05,2]
[401292718,1768111838161,-1794.304779,9.272e-05,2]
[401292720,1768111838171,-1794.304779,9.272e-05,2]
[401292722,1768111838181,-1794.304779,9.272e-05,2]
[401292724,1768111838190,-1794.304779,9.272e-05,2]
[401292726,1768111838200,-1794.304779,9.272e-05,2]
[401292728,1768111838209,-1794.304779,9.272e-05,2]
[401292730,1768111838219,-1794.304779,9.272e-05,2]
[401292732,1768111838229,-1794.304779,9.272e-05,2]
[401292733,1768111838239,-1937.84916132,9.272e-05,2]
[401292734,1768111838249,-1937.84916132,9.272e-05,2]
[401292735,1768111838259,-1937.84916132,9.272e-05,2]
[401292736,1768111838268,-1937.84916132,9.272e-05,2]
[401292737,1768111838278,-1937.84916132,9.272e-05,2]
[401292738,1768111838287,-1937.84916132,9.272e-05,2]
[401292739,1768111838297,-1937.84916132,9.272e-05,2]
[401292740,1768111838306,-1937.84916132,9.272e-05,2]
[401292741,1768111838316,-1937.84916132,9.272e-05,2]
[401292742,1768111838326,-31460.04672403,9.273e-05,2]
[401292770,1768111840179,-526.30212007,9.273e-05,2]
[401292772,1768111840190,-5518.80892051,9.273e-05,2]
[401292774,1768111840201,-39711.6096101,9.273e-05,2]
[401292818,1768111845430,-2343.14558157,9.273e-05,2]
[401292821,1768111845769,-15690.20064092,9.273e-05,2]
[401292823,1768111845989,-26982.18879854,9.273e-05,2]
[401292824,1768111846046,-6123.83428489,9.273e-05,2]
[401292825,1768111905938,157.336,9.087e-05,2]
[401292826,1768111913590,207.5785114,9.171e-05,2]
[401292827,1768112221551,300.0,8.298e-05,2]
[401292828,1768112391419,170.4798421,9.172e-05,2]
[401292829,1768112391448,10000.01,9.172e-05,2]
[401292830,1768112391474,10000.01,9.172e-05,2]
[401292831,1768112391500,10000.01,9.172e-05,2]
[401292832,1768112391529,10000.01,9.172e-05,2]
[401292833,1768112391556,10000.01,9.172e-05,2]
[401292834,1768112391583,10000.01,9.172e-05,2]
[401292835,1768112391608,10000.01,9.172e-05,2]
[401292836,1768112391631,10000.01,9.172e-05,2]
[401292837,1768112391657,10000.01,9.172e-05,2]
[401292838,1768112401921,-300.0,9.171e-05,2]
[401292839,1768112402017,300.0,9.171e-05,2]
[401292840,1768112402093,-228.08421647,9.172e-05,2]
[401292841,1768112402164,300.0,9.171e-05,2]
[401292842,1768112402994,1200.0,9.171e-05,2]
[401292843,1768112404733,-178.74164817,9.172e-05,2]
[401292844,1768112404892,548.0,9.171e-05,2]
[401292845,1768112406825,-500.0,9.172e-05,2]
[401292846,1768112409648,-164.17223265,9.172e-05,2]
[401292847,1768112411173,-342.87325689,9.172e-05,2]
[401292848,1768112414757,-300.0,9.172e-05,2]
[401292849,1768112431889,171.22870543,9.171e-05,2]
[401292850,1768112432069,1314.86654205,9.171e-05,2]
[401292851,1768112432108,1314.86654205,9.171e-05,2]
[401292852,1768112432189,1314.86654205,9.171e-05,2]
[401292853,1768112432230,1314.86654205,9.171e-05,2]
[401292854,1768112432411,1314.86654205,9.171e-05,2]
[401292855,1768112432479,306.44858432,9.171e-05,2]
[401292856,1768112432501,1008.41795773,9.171e-05,2]
[401292857,1768112432541,1314.86654205,9.171e-05,2]
[401292858,1768112432576,1314.86654205,9.171e-05,2]
[401292859,1768112432648,274.50389978,9.171e-05,2]
[401292860,1768112432684,164.17223265,9.171e-05,2]
[401292861,1768112432747,1314.86654205,9.171e-05,2]
[401292862,1768112432811,1314.86654205,9.171e-05,2]
[401292863,1768112432965,1314.86654205,9.171e-05,2]
[401292864,1768112433002,1314.86654205,9.171e-05,2]
[401292865,1768112433038,663.71665754,9.171e-05,2]
[401292866,1768112433061,651.14988451,9.171e-05,2]
[401292867,1768112433100,1314.86654205,9.171e-05,2]
[401292868,1768112439914,500.0,9.171e-05,2]
[401292869,1768112448906,999.29857196,9.171e-05,2]
[401292870,1768112448943,999.29857196,9.171e-05,2]
[401292871,1768112449024,999.29857196,9.171e-05,2]
[401292872,1768112449059,999.29857196,9.171e-05,2]
[401292873,1768112449224,999.29857196,9.171e-05,2]
[401292874,1768112449363,999.29857196,9.171e-05,2]
[401292875,1768112449760,999.29857196,9.171e-05,2]
[401292876,1768112449796,538.90356972,9.171e-05,2]
[401292877,1768112449818,460.39500224,9.171e-05,2]
[401292878,1768112449974,999.29857196,9.171e-05,2]
[401292879,1768112462421,300.0,9.171e-05,2]
[401292880,1768112466736,536.11017982,9.171e-05,2]
[401292881,1768112466965,536.11017982,9.171e-05,2]
[401292882,1768112467055,536.11017982,9.171e-05,2]
[401292883,1768112467144,536.11017982,9.171e-05,2]
[401292884,1768112467245,536.11017982,9.171e-05,2]
[401292885,1768112467479,536.11017982,9.171e-05,2]
[401292886,1768112468491,174.00589667,0.00023018,120]
[401292887,1768112505926,157.336,8.988e-05,2]
[401292888,1768112522337,300.0,9.171e-05,2]
[401292889,1768112582320,300.0,9.171e-05,2]
[401292890,1768112642418,300.0,9.171e-05,2]
[401292892,1768112702529,300.0,9.171e-05,2]
[401292893,1768112712480,425.35,0.00030136,120]
[401292895,1768112762533,300.0,9.171e-05,2]
[401292896,1768112822708,300.0,9.171e-05,2]
[401292897,1768112882707,300.0,9.171e-05,2]
[401292903,1768112942512,300.0,9.171e-05,2]
[401292904,1768113002757,300.0,9.171e-05,2]
[401292928,1768113032064,-335.56575411,9.172e-05,2]
[401292929,1768113032075,-170429.19276889,9.172e-05,2]
[401292946,1768113038209,-1932.93684222,9.172e-05,2]
[401292947,1768113038221,-426.32078108,9.172e-05,2]
[401293001,1768113040504,-0.00779792,9.172e-05,2]
[401293025,1768113046260,-606.9386348,9.172e-05,2]
[401293026,1768113062271,300.0,9.171e-05,2]
[401293027,1768113105968,157.337,8.988e-05,2]
[401293028,1768113106217,1708.98234688,8.373e-05,2]
[401293029,1768113106241,10000.01,8.373e-05,2]
[401293030,1768113106264,10000.01,8.373e-05,2]
[401293031,1768113106286,10000.01,8.373e-05,2]
[401293032,1768113106308,10000.01,8.373e-05,2]
[401293033,1768113106331,10000.01,8.373e-05,2]
[401293034,1768113106353,10000.01,8.373e-05,2]
[401293035,1768113106375,577.63880162,8.373e-05,2]
[401293036,1768113122682,300.0,9.171e-05,2]
[401293037,1768113182615,300.0,9.171e-05,2]
[401293038,1768113196233,4238.5106177,8.342e-05,2]
[401293039,1768113218401,539.70023401,9.171e-05,2]
[401293040,1768113218579,568.36935711,9.171e-05,2]
[401293041,1768113238186,500.0,9.171e-05,2]
[401293042,1768113242391,300.0,9.171e-05,2]
[401293043,1768113301335,300.0,9.171e-05,2]
[401293044,1768113302284,300.0,9.171e-05,2]
[401293045,1768113302991,1200.0,9.171e-05,2]
[401293046,1768113309994,300.0,9.171e-05,2]
[401293047,1768113352329,284.17,8.839e-05,2]
[401293048,1768113420959,291.62098956,9.072e-05,2]
[401293049,1768113420984,10000.01,9.072e-05,2]
[401293050,1768113421009,10000.01,9.072e-05,2]
[401293051,1768113421034,10000.01,9.072e-05,2]
[401293052,1768113421061,10000.01,9.072e-05,2]
[401293053,1768113421086,10000.01,9.072e-05,2]
[401293054,1768113421115,10000.01,9.072e-05,2]
[401293055,1768113421142,10000.01,9.072e-05,2]
[401293056,1768113421171,10000.01,9.072e-05,2]
[401293057,1768113421200,10000.01,9.072e-05,2]
[401293058,1768113427797,-423.60023398,9.072e-05,2]
[401293059,1768113466971,-276.94,8.834e-05,2]
[401293060,1768113466992,-128.82457809,8.882e-05,2]
[401293061,1768113468727,-229.91472739,8.882e-05,2]
[401293062,1768113468756,-1433.52226471,8.882e-05,2]
[401293063,1768113469572,-300.8570889,9.072e-05,2]
[401293064,1768113472095,-206.1657517,9.072e-05,2]
[401293065,1768113474836,-436.42084344,9.072e-05,2]
[401293066,1768113477498,-192.78,9.072e-05,2]
[401293067,1768113480965,-181.9,9.072e-05,2]
[401293068,1768113483656,-167.7565346,9.072e-05,2]
[401293069,1768113485182,-177.15831312,9.072e-05,2]
[401293070,1768113487991,-198.3434654,9.072e-05,2]
[401293071,1768113490048,-173.19,9.072e-05,2]
[401293072,1768113492802,-172.74084344,9.072e-05,2]
[401293073,1768113496293,-421.40025926,9.072e-05,2]
[401293074,1768113499473,-178.51215727,9.072e-05,2]
[401293075,1768113501010,-231.36964492,9.072e-05,2]
[401293076,1768113503063,-207.38050303,9.072e-05,2]
[401293077,1768113510171,275.9,8.138e-05,2]
[401293078,1768113510578,551.81,8.878e-05,2]
[401293079,1768113532225,1008.6817439,9.071e-05,2]
[401293080,1768113533119,1008.6817439,9.071e-05,2]
[401293081,1768113533450,1008.6817439,9.071e-05,2]
[401293082,1768113533797,1008.6817439,9.071e-05,2]
[401293083,1768113534150,1008.6817439,9.071e-05,2]
[401293084,1768113534529,802.0172963,9.071e-05,2]
[401293085,1768113534552,206.6644476,9.071e-05,2]
[401293086,1768113534894,1008.6817439,9.071e-05,2]
[401293087,1768113535274,1008.6817439,9.071e-05,2]
[401293088,1768113535555,1008.6817439,9.071e-05,2]
[401293089,1768113535599,1008.6817439,9.071e-05,2]
[401293090,1768113535668,1008.6817439,9.071e-05,2]
[401293091,1768113535836,1008.6817439,9.071e-05,2]
[401293092,1768113536102,1008.6817439,9.071e-05,2]
[401293093,1768113536144,1008.6817439,9.071e-05,2]
[401293094,1768113536184,1008.6817439,9.071e-05,2]
[401293095,1768113536295,715.2098573,9.071e-05,2]
[401293096,1768113536317,293.4718866,9.071e-05,2]
[401293097,1768113536379,1008.6817439,9.071e-05,2]
[401293098,1768113536415,1008.6817439,9.071e-05,2]
[401293099,1768113536463,500.0,9.071e-05,2]
[401293100,1768113536500,500.0,9.071e-05,2]
[401293101,1768113536537,1008.6817439,9.071e-05,2]
[401293102,1768113536575,500.0,9.071e-05,2]
[401293103,1768113536611,500.0,9.071e-05,2]
[401293104,1768113536648,500.0,9.071e-05,2]
[401293105,1768113536684,500.0,9.071e-05,2]
[401293106,1768113536722,500.0,9.071e-05,2]
[401293107,1768113536758,500.0,9.071e-05,2]
[401293108,1768113536795,500.0,9.071e-05,2]
[401293109,1768113536833,500.0,9.071e-05,2]
[401293110,1768113536867,500.0,9.071e-05,2]
[401293111,1768113536905,500.0,9.071e-05,2]
[401293112,1768113536942,680.4928817,9.071e-05,2]
[401293113,1768113536967,328.1888622,9.071e-05,2]
[401293114,1768113537007,500.0,9.071e-05,2]
[401293115,1768113537042,500.0,9.071e-05,2]
[401293116,1768113537077,500.0,9.071e-05,2]
[401293117,1768113537115,500.0,9.071e-05,2]
[401293118,1768113537149,285.62655563,9.071e-05,2]
[401293119,1768113537187,500.0,9.071e-05,2]
[401293120,1768113537227,500.0,9.071e-05,2]
[401293121,1768113537265,500.0,9.071e-05,2]
[401293122,1768113537305,500.0,9.071e-05,2]
[401293123,1768113537347,500.0,9.071e-05,2]
[401293124,1768113537387,500.0,9.071e-05,2]
[401293125,1768113537434,500.0,9.071e-05,2]
[401293126,1768113537471,403.22156259,9.071e-05,2]
[401293127,1768113537507,500.0,9.071e-05,2]
[401293128,1768113537547,500.0,9.071e-05,2]
[401293129,1768113537584,500.0,9.071e-05,2]
[401293130,1768113537623,1008.6817439,9.071e-05,2]
[401293131,1768113537658,500.0,9.071e-05,2]
[401293132,1768113537694,474.29127568,9.071e-05,2]
[401293133,1768113537717,25.70872432,9.071e-05,2]
[401293134,1768113537751,500.0,9.071e-05,2]
[401293135,1768113537794,500.0,9.071e-05,2]
[401293136,1768113537828,500.0,9.071e-05,2]
[401293137,1768113537879,500.0,9.071e-05,2]
[401293138,1768113537917,500.0,9.071e-05,2]
[401293139,1768113538067,500.0,9.071e-05,2]
[401293140,1768113538106,500.0,9.071e-05,2]
[401293141,1768113538142,500.0,9.071e-05,2]
[401293142,1768113538180,500.0,9.071e-05,2]
[401293143,1768113538216,500.0,9.071e-05,2]
[401293144,1768113538269,500.0,9.071e-05,2]
[401293145,1768113538313,500.0,9.071e-05,2]
[401293146,1768113538357,500.0,9.071e-05,2]
[401293147,1768113538401,500.0,9.071e-05,2]
[401293148,1768113538441,500.0,9.071e-05,2]
[401293149,1768113538479,500.0,9.071e-05,2]
[401293150,1768113538520,500.0,9.071e-05,2]
[401293151,1768113538558,500.0,9.071e-05,2]
[401293152,1768113538595,500.0,9.071e-05,2]
[401293153,1768113538637,474.30127568,9.071e-05,2]
[401293154,1768113538661,25.69872432,9.071e-05,2]
[401293155,1768113538701,500.0,9.071e-05,2]
[401293156,1768113538739,500.0,9.071e-05,2]
[401293157,1768113538780,1008.6817439,9.071e-05,2]
[401293158,1768113538818,500.0,9.071e-05,2]
[401293159,1768113538866,500.0,9.071e-05,2]
[401293160,1768113538908,500.0,9.071e-05,2]
[401293161,1768113538948,500.0,9.071e-05,2]
[401293162,1768113538995,500.0,9.071e-05,2]
[401293163,1768113539034,503.47424776,9.071e-05,2]
[401293164,1768113539117,500.0,9.071e-05,2]
[401293165,1768113539170,500.0,9.071e-05,2]
[401293166,1768113539852,500.0,9.071e-05,2]
[401293167,1768113546560,500.0,9.071e-05,2]
[401293168,1768113546603,500.0,9.071e-05,2]
[401293169,1768113546645,500.0,9.071e-05,2]
[401293170,1768113546688,1465.24295429,9.071e-05,2]
[401293171,1768113546733,496.91232973,9.071e-05,2]
[401293172,1768113546761,3.08767027,9.071e-05,2]
[401293173,1768113546804,500.0,9.071e-05,2]
[401293174,1768113546845,500.0,9.071e-05,2]
[401293175,1768113546884,1465.24295429,9.071e-05,2]
[401293176,1768113546922,1465.24295429,9.071e-05,2]
[401293177,1768113546959,1465.24295429,9.071e-05,2]
[401293178,1768113546996,1465.24295429,9.071e-05,2]
[401293179,1768113547033,1465.24295429,9.071e-05,2]
[401293180,1768113547074,1465.24295429,9.071e-05,2]
[401293181,1768113547240,205.46460399,9.071e-05,2]
[401293182,1768113547265,1259.7783503,9.071e-05,2]
[401293183,1768113547303,500.0,9.071e-05,2]
[401293184,1768113547339,1465.24295429,9.071e-05,2]
[401293185,1768113547377,1465.24295429,9.071e-05,2]
[401293186,1768113547416,1465.24295429,9.071e-05,2]
[401293187,1768113547460,1465.24295429,9.071e-05,2]
[401293188,1768113562361,500.0,9.071e-05,2]
[401293189,1768113562399,500.0,9.071e-05,2]
[401293190,1768113562445,500.0,9.071e-05,2]
[401293191,1768113562483,500.0,9.071e-05,2]
[401293192,1768113562518,379.25983254,9.071e-05,2]
[401293193,1768113562541,120.74016746,9.071e-05,2]
[401293194,1768113562577,221.92115417,9.071e-05,2]
[401293195,1768113562623,500.0,9.071e-05,2]
[401293196,1768113562803,500.0,9.071e-05,2]
[401293197,1768113604648,154.18,5e-05,2]
[401293198,1768113605925,-154.18,7.1e-05,2]
[401293199,1768113605958,-265.37,8.591e-05,2]
[401293200,1768113605988,-540.0,8.591e-05,2]
[401293201,1768113606018,-1200.0,9.071e-05,2]
[401293202,1768113641859,1942.72761815,9.016e-05,2]
[401293203,1768113644513,826.48572344,8.882e-05,2]
[401293204,1768113647036,2911.69665841,8.882e-05,2]
[401293205,1768113647062,394.24623534,8.882e-05,2]
[401293206,1768113670624,261.99,8.107e-05,2]
[401293207,1768113671029,523.99,8.844e-05,2]
[401293208,1768113706123,157.337,8.89e-05,2]
[401293209,1768113725768,500.0,9.071e-05,2]
[401293210,1768113725811,205.07644982,9.071e-05,2]
[401293211,1768113743962,500.0,9.071e-05,2]
[401293212,1768113745659,500.0,9.071e-05,2]
[401293213,1768113745698,500.0,9.071e-05,2]
[401293214,1768113745737,500.0,9.071e-05,2]
[401293215,1768113745787,500.0,9.071e-05,2]
[401293216,1768113745825,500.0,9.071e-05,2]
[401293217,1768113745864,500.0,9.071e-05,2]
[401293218,1768113745910,500.0,9.071e-05,2]
[401293219,1768113745948,500.0,9.071e-05,2]
[401293220,1768113745986,500.0,9.071e-05,2]
[401293221,1768113746023,500.0,9.071e-05,2]
[401293222,1768113746065,500.0,9.071e-05,2]
[401293223,1768113746103,500.0,9.071e-05,2]
[401293224,1768113746152,500.0,9.071e-05,2]
[401293225,1768113746194,500.0,9.071e-05,2]
[401293226,1768113746234,457.37031484,9.071e-05,2]
[401293227,1768113746260,42.62968516,9.071e-05,2]
[401293228,1768113746301,500.0,9.071e-05,2]
[401293229,1768113746341,500.0,9.071e-05,2]
[401293230,1768113746381,500.0,9.071e-05,2]
[401293231,1768113746426,500.0,9.071e-05,2]
[401293232,1768113746463,500.0,9.071e-05,2]
[401293233,1768113746502,500.0,9.071e-05,2]
[401293234,1768113746567,500.0,9.071e-05,2]
[401293235,1768113746613,500.0,9.071e-05,2]
[401293236,1768113746663,500.0,9.071e-05,2]
[401293237,1768113746701,500.0,9.071e-05,2]
[401293238,1768113746739,500.0,9.071e-05,2]
[401293239,1768113746775,296.92810725,9.071e-05,2]
[401293240,1768113746817,500.0,9.071e-05,2]
[401293241,1768113749954,251.99,8.169e-05,2]
[401293242,1768113750393,503.98,8.911e-05,2]
[401293243,1768113775272,500.0,9.071e-05,2]
[401293244,1768113775312,500.0,9.071e-05,2]
[401293245,1768113775354,500.0,9.071e-05,2]
[401293246,1768113775393,500.0,9.071e-05,2]
[401293247,1768113775438,500.0,9.071e-05,2]
[401293248,1768113775490,404.48220759,9.071e-05,2]
[401293249,1768113775514,247.44668027,9.071e-05,2]
[401293250,1768113775553,500.0,9.071e-05,2]
[401293251,1768113775591,500.0,9.071e-05,2]
[401293252,1768113775628,500.0,9.071e-05,2]
[401293253,1768113775666,500.0,9.071e-05,2]
[401293254,1768113775708,500.0,9.071e-05,2]
[401293255,1768113794144,500.0,9.071e-05,2]
[401293256,1768113794464,500.0,9.071e-05,2]
[401293257,1768113794756,500.0,9.071e-05,2]
[401293258,1768113795704,300.0,9.071e-05,2]
[401293259,1768113805707,500.0,9.071e-05,2]
[401293260,1768113805743,500.0,9.071e-05,2]
[401293261,1768113805779,500.0,9.071e-05,2]
[401293262,1768113805816,500.0,9.071e-05,2]
[401293263,1768113805851,500.0,9.071e-05,2]
[401293264,1768113805887,500.0,9.071e-05,2]
[401293265,1768113805930,500.0,9.071e-05,2]
[401293266,1768113805967,500.0,9.071e-05,2]
[401293267,1768113806003,500.0,9.071e-05,2]
[401293268,1768113806039,500.0,9.071e-05,2]
[401293269,1768113806074,452.56331973,9.071e-05,2]
[401293270,1768113806099,47.43668027,9.071e-05,2]
[401293271,1768113806136,500.0,9.071e-05,2]
[401293272,1768113806174,500.0,9.071e-05,2]
[401293273,1768113806210,500.0,9.071e-05,2]